bitfinex/quotes_BTCUSD_20240613
["timestamp","ask_amount","ask_price","bid_price","bid_amount"]
[1718281945076,0.011,68389.0,68373.0,0.164]
[1718281945298,0.011,68389.0,68371.0,0.11615996]
[1718281945475,0.011,68389.0,68373.0,0.064]
[1718281945693,0.011,68389.0,68373.0,0.044]
[1718281945854,0.011,68389.0,68373.0,0.064]
[1718281946208,0.011,68389.0,68373.0,0.3478]
[1718281946362,0.00851,68390.0,68373.0,0.82331993]
[1718281946548,0.43295979,68415.0,68394.0,0.164]
[1718281946971,0.43295979,68415.0,68388.0,0.044]
[1718281946972,0.0256,68409.0,68388.0,0.044]
[1718281947162,0.0165787,68395.0,68382.0,0.09215996]
[1718281947402,0.14431993,68394.0,68382.0,0.07215996]
[1718281947613,0.24882979,68394.0,68382.0,0.07215996]
[1718281947813,0.24882979,68394.0,68379.0,0.093]
[1718281947814,0.14431993,68392.0,68374.0,0.07215996]
[1718281948020,0.14431993,68385.0,68366.0,0.044]
[1718281948215,0.14431993,68385.0,68376.0,0.07215996]
[1718281948216,0.08842,68384.0,68376.0,0.07215996]
[1718281948480,0.08842,68384.0,68372.0,0.044]
[1718281948481,0.08842,68384.0,68377.0,0.07215996]
[1718281948776,0.18842,68384.0,68369.0,0.07215996]
[1718281948985,0.08842,68382.0,68369.0,0.07215996]
[1718281949223,0.08842,68382.0,68364.0,0.044]
[1718281949224,0.18842,68382.0,68364.0,0.044]
[1718281949433,0.18842,68382.0,68362.0,0.07215996]
[1718281949434,0.08842,68378.0,68362.0,0.07215996]
[1718281949579,0.08842,68376.0,68362.0,0.07215996]
[1718281949784,0.08842,68376.0,68369.0,0.07215996]
[1718281949785,0.08842,68374.0,68369.0,0.07215996]
[1718281949983,0.08842,68372.0,68369.0,0.07215996]
[1718281950192,0.14431993,68371.0,68369.0,0.07215996]
[1718281950400,0.1,68370.0,68369.0,0.07215996]
[1718281950746,0.0080687,68374.0,68373.0,0.164]
[1718281950898,0.0080687,68374.0,68373.0,0.382]
[1718281951484,0.0080687,68374.0,68373.0,0.064]
[1718281951974,0.0080687,68374.0,68373.0,0.044]
[1718281952178,0.0080687,68374.0,68373.0,0.164]
[1718281952384,0.0080687,68374.0,68373.0,0.044]
[1718281952588,0.0080687,68374.0,68370.0,0.064]
[1718281952787,0.14431993,68373.0,68369.0,0.07215996]
[1718281953244,0.0080687,68374.0,68369.0,0.07215996]
[1718281953245,0.0080687,68374.0,68373.0,0.154]
[1718281953538,0.00851,68404.0,68392.0,0.213]
[1718281953539,0.0146,68393.0,68392.0,0.213]
[1718281953692,0.0146,68393.0,68392.0,0.36731993]
[1718281953910,0.0146,68393.0,68392.0,0.35731993]
[1718281954128,0.00851,68404.0,68403.0,0.213]
[1718281954546,0.00851,68404.0,68403.0,0.6867]
[1718281954746,0.00851,68404.0,68403.0,0.213]
[1718281954963,0.00851,68404.0,68403.0,0.113]
[1718281955167,0.00851,68404.0,68403.0,0.213]
[1718281956825,0.00851,68404.0,68403.0,0.113]
[1718281957032,0.00851,68404.0,68403.0,0.093]
[1718281957345,0.00851,68404.0,68403.0,0.113]
[1718281957821,0.00851,68404.0,68398.0,0.044]
[1718281957822,0.15282993,68404.0,68398.0,0.044]
[1718281958256,0.15282993,68404.0,68385.0,0.049]
[1718281958257,0.14431993,68401.0,68385.0,0.049]
[1718281958480,0.08842,68400.0,68388.0,0.044]
[1718281958647,0.18192,68400.0,68388.0,0.044]
[1718281958912,0.14431993,68399.0,68386.0,0.07215996]
[1718281959101,0.17542,68398.0,68381.0,0.044]
[1718281959314,0.17542,68398.0,68383.0,0.02]
[1718281959315,0.07542,68396.0,68383.0,0.02]
[1718281959478,0.14431993,68395.0,68387.0,0.044]
[1718281959683,0.00851,68404.0,68393.0,0.044]
[1718281959916,0.00851,68404.0,68398.0,0.07215996]
[1718281959917,0.15282993,68404.0,68398.0,0.07215996]
[1718281960116,0.15282993,68404.0,68403.0,0.213]
[1718281960117,0.00851,68404.0,68403.0,0.213]
[1718281960330,0.00851,68404.0,68403.0,0.4208]
[1718281960546,0.00851,68404.0,68403.0,0.213]
[1718281960752,0.00851,68404.0,68403.0,0.093]
[1718281961157,0.15282993,68404.0,68397.0,0.044]
[1718281961385,0.14431993,68403.0,68397.0,0.044]
[1718281961544,0.14431993,68403.0,68392.0,0.049]
[1718281961545,0.14431993,68403.0,68393.0,0.044]
[1718281961707,0.14431993,68403.0,68387.0,0.02]
[1718281961708,0.08842,68402.0,68387.0,0.044]
[1718281962068,0.24352,68398.0,68378.0,0.049]
[1718281962445,0.24352,68398.0,68374.0,0.044]
[1718281962645,0.24352,68398.0,68370.0,0.48195979]
[1718281962646,0.08842,68394.0,68376.0,0.11615996]
[1718281962851,0.1,68397.0,68383.0,0.07215996]
[1718281962852,0.08842,68392.0,68383.0,0.07215996]
[1718281963066,0.14431993,68391.0,68379.0,0.044]
[1718281963266,0.25601392,68391.0,68379.0,0.044]
[1718281963467,0.23273993,68391.0,68384.0,0.049]
[1718281963819,0.14431993,68391.0,68384.0,0.049]
[1718281964479,0.1146,68397.0,68362.0,0.08215996]
[1718281964480,0.23273993,68388.0,68377.0,0.049]
[1718281964820,0.23273993,68388.0,68370.0,0.07215996]
[1718281964821,0.08842,68386.0,68370.0,0.12115996]
[1718281965025,0.08842,68386.0,68349.0,0.43295979]
[1718281965026,0.08842,68380.0,68360.0,0.044]
[1718281965238,0.08842,68380.0,68353.0,0.093]
[1718281965239,0.24352,68380.0,68353.0,0.093]
[1718281965618,0.24352,68380.0,68346.0,0.02]
[1718281965619,0.24352,68371.0,68346.0,0.07215996]
[1718281965784,0.1551,68368.0,68348.0,0.044]
[1718281966026,0.18842,68367.0,68348.0,0.044]
[1718281966231,0.08842,68361.0,68341.0,0.093]
[1718281966444,0.29941993,68362.0,68342.0,0.07215996]
[1718281966445,0.08842,68359.0,68342.0,0.07215996]
[1718281966652,0.08842,68357.0,68342.0,0.07215996]
[1718281966821,0.33273993,68357.0,68342.0,0.07215996]
[1718281967563,0.33273993,68357.0,68338.0,0.1]
[1718281967564,0.48783993,68357.0,68334.0,0.12115996]
[1718281967792,0.56108392,68357.0,68335.0,0.07215996]
[1718281967967,0.48783993,68357.0,68335.0,0.09215996]
[1718281968165,0.33273993,68357.0,68335.0,0.09215996]
[1718281968412,0.33273993,68357.0,68335.0,0.13615996]
[1718281968645,0.33273993,68357.0,68337.0,0.044]
[1718281968879,0.33273993,68357.0,68335.0,0.07215996]
[1718281969133,0.51083993,68357.0,68335.0,0.07215996]
[1718281969346,0.51083993,68357.0,68333.0,0.049]
[1718281969558,0.48783993,68357.0,68335.0,0.044]
[1718281969777,0.60378392,68357.0,68335.0,0.044]
[1718281970057,0.60378392,68357.0,68333.0,0.049]
[1718281970058,1.12208392,68357.0,68333.0,0.049]
[1718281970530,0.08,68356.0,68323.0,0.049]
[1718281970774,0.08,68356.0,68334.0,0.07215996]
[1718281970775,0.08842,68339.0,68334.0,0.07215996]
[1718281970986,0.14431993,68338.0,68334.0,0.07215996]
[1718281971200,0.011,68355.0,68337.0,0.049]
[1718281971403,0.23938209,68354.0,68341.0,0.07215996]
[1718281971607,0.20494993,68354.0,68341.0,0.07215996]
[1718281971809,0.14431993,68354.0,68341.0,0.07215996]
[1718281971986,0.08842,68353.0,68341.0,0.07215996]
[1718281972184,0.14431993,68352.0,68348.0,0.07215996]
[1718281972705,0.10327399,68385.0,68348.0,0.07215996]
[1718281972706,0.2869,68369.0,68354.0,0.049]
[1718281972804,0.2869,68369.0,68356.0,0.02]
[1718281972805,0.14431993,68359.0,68356.0,0.02]
[1718281973029,0.14431993,68359.0,68355.0,0.07215996]
[1718281973229,0.23273993,68359.0,68347.0,0.3282]
[1718281973441,0.08842,68357.0,68340.0,0.113]
[1718281973624,0.0146,68360.0,68348.0,0.07215996]
[1718281973835,0.011,68369.0,68358.0,0.049]
[1718281974061,0.08842,68368.0,68358.0,0.049]
[1718281974271,0.08842,68366.0,68358.0,0.049]
[1718281974524,0.011,68369.0,68362.0,0.12115996]
[1718281974721,0.01769166,68394.0,68362.0,0.12115996]
[1718281974722,0.011,68383.0,68369.0,0.049]
[1718281974889,0.14431993,68380.0,68361.0,0.049]
[1718281975089,0.14431993,68380.0,68356.0,0.044]
[1718281975090,0.08842,68379.0,68369.0,0.07215996]
[1718281975291,0.14431993,68380.0,68376.0,0.07215996]
[1718281975497,0.011,68383.0,68379.0,0.044]
[1718281975803,0.00085,68400.0,68379.0,0.044]
[1718281975804,0.011,68398.0,68379.0,0.044]
[1718281976008,0.08842,68396.0,68383.0,0.07215996]
[1718281976169,0.08842,68394.0,68384.0,0.02]
[1718281976375,0.25857392,68393.0,68382.0,0.049]
[1718281976700,0.08842,68391.0,68382.0,0.049]
[1718281976903,0.08842,68389.0,68382.0,0.049]
[1718281977103,0.08842,68384.0,68367.0,0.093]
[1718281977335,0.08842,68382.0,68377.0,0.07215996]
[1718281977550,0.14431993,68381.0,68373.0,0.044]
[1718281977751,0.14431993,68381.0,68378.0,0.049]
[1718281978162,0.08842,68380.0,68370.0,0.049]
[1718281978314,0.14431993,68379.0,68370.0,0.049]
[1718281978513,0.18842,68378.0,68362.0,0.12115996]
[1718281978828,0.18842,68378.0,68335.0,0.1551]
[1718281978829,0.14431993,68376.0,68374.0,0.02]
[1718281979030,0.0256,68384.0,68376.0,0.049]
[1718281979031,0.0146,68384.0,68376.0,0.049]
[1718281979235,0.14431993,68383.0,68376.0,0.049]
[1718281979437,0.1,68382.0,68376.0,0.049]
[1718281979662,0.14431993,68381.0,68376.0,0.049]
[1718281979887,0.14431993,68381.0,68372.0,0.02]
[1718281979888,0.08842,68380.0,68372.0,0.07215996]
[1718281980098,0.14431993,68379.0,68374.0,0.044]
[1718281980459,0.14431993,68380.0,68376.0,0.044]
[1718281980665,0.14431993,68380.0,68369.0,0.044]
[1718281980902,0.14431993,68380.0,68368.0,0.02]
[1718281981109,0.1,68382.0,68366.0,0.149]
[1718281981110,0.23273993,68379.0,68366.0,0.049]
[1718281981304,0.23273993,68368.0,68352.0,0.049]
[1718281981535,0.23273993,68368.0,68359.0,0.044]
[1718281981746,0.23273993,68368.0,68355.0,0.07215996]
[1718281981747,0.049,68379.0,68367.0,0.049]
[1718281981923,0.049,68379.0,68362.0,0.07215996]
[1718281982068,0.049,68379.0,68360.0,0.044]
[1718281982069,0.08782,68378.0,68364.0,0.07215996]
[1718281982273,0.17902,68378.0,68358.0,0.049]
[1718281982475,0.07022,68368.0,68358.0,0.049]
[1718281982687,0.21453993,68366.0,68358.0,0.049]
[1718281982912,0.21453993,68366.0,68359.0,0.07215996]
[1718281983114,0.07022,68364.0,68362.0,0.049]
[1718281983288,0.14431993,68363.0,68362.0,0.169]
[1718281983500,0.0146,68367.0,68366.0,0.164]
[1718281983767,0.0146,68367.0,68359.0,0.07215996]
[1718281983768,0.0256,68381.0,68377.0,0.02]
[1718281983974,0.14431993,68380.0,68378.0,0.07215996]
[1718281984181,0.14431993,68380.0,68379.0,0.049]
[1718281984629,0.14431993,68380.0,68366.0,0.044]
[1718281984630,0.23213993,68380.0,68362.0,0.049]
[1718281984841,0.08782,68377.0,68363.0,0.02]
[1718281985049,0.08782,68377.0,68346.0,0.01]
[1718281985050,0.23213993,68371.0,68355.0,0.049]
[1718281985269,0.23213993,68367.0,68355.0,0.049]
[1718281985680,0.23213993,68367.0,68348.0,0.17215996]
[1718281985681,0.14431993,68367.0,68364.0,0.12115996]
[1718281985890,0.14431993,68367.0,68364.0,0.14115996]
[1718281986105,0.0746,68381.0,68368.0,0.02]
[1718281986303,0.0746,68381.0,68364.0,0.12115996]
[1718281986304,0.14431993,68378.0,68364.0,0.12115996]
[1718281986720,0.02877,68380.0,68364.0,0.12115996]
[1718281986721,0.08782,68370.0,68364.0,0.049]
[1718281986971,0.1551,68374.0,68365.0,0.07215996]
[1718281986972,0.08782,68368.0,68365.0,0.07215996]
[1718281987171,0.1,68377.0,68359.0,0.049]
[1718281987172,0.08782,68366.0,68359.0,0.049]
[1718281987394,0.08782,68364.0,68356.0,0.07215996]
[1718281987605,0.08782,68364.0,68352.0,0.049]
[1718281987606,0.08782,68362.0,68352.0,0.069]
[1718281987811,0.23213993,68361.0,68353.0,0.02]
[1718281988020,0.23213993,68361.0,68352.0,0.149]
[1718281988021,0.23213993,68361.0,68355.0,0.02]
[1718281988256,0.23213993,68361.0,68352.0,0.049]
[1718281988477,0.08782,68354.0,68345.0,0.049]
[1718281988709,0.00732,68355.0,68345.0,0.049]
[1718281988710,0.08782,68352.0,68345.0,0.049]
[1718281988945,0.08782,68352.0,68339.0,0.1]
[1718281988946,0.08782,68350.0,68342.0,0.049]
[1718281989154,0.14431993,68351.0,68343.0,0.07215996]
[1718281989155,0.08782,68348.0,68343.0,0.07215996]
[1718281989365,0.08782,68346.0,68343.0,0.07215996]
[1718281989569,0.14431993,68345.0,68343.0,0.07215996]
[1718281990090,0.1,68351.0,68344.0,0.02]
[1718281990293,0.00732,68355.0,68354.0,0.044]
[1718281990552,0.00732,68355.0,68351.0,0.049]
[1718281991125,0.08782,68354.0,68352.0,0.07215996]
[1718281991328,0.00732,68355.0,68352.0,0.07215996]
[1718281991329,0.14431993,68353.0,68352.0,0.07215996]
[1718281991553,0.14431993,68353.0,68343.0,0.16515996]
[1718281991755,0.15948392,68353.0,68343.0,0.12115996]
[1718281991978,0.1,68352.0,68350.0,0.07215996]
[1718281992131,0.1,68352.0,68343.0,0.12115996]
[1718281992132,0.08782,68350.0,68343.0,0.12115996]
[1718281992330,0.08782,68348.0,68343.0,0.12115996]
[1718281992535,0.08782,68346.0,68335.0,0.049]
[1718281992775,0.1661,68351.0,68332.0,0.044]
[1718281992776,0.08782,68344.0,68341.0,0.07215996]
[1718281992975,0.08782,68342.0,68341.0,0.07215996]
[1718281993176,0.23213993,68342.0,68341.0,0.07215996]
[1718281993676,0.33213993,68342.0,68334.0,0.07215996]
[1718281993889,0.08782,68340.0,68334.0,0.07215996]
[1718281994054,0.2411,68351.0,68334.0,0.07215996]
[1718281994055,0.08782,68347.0,68341.0,0.07215996]
[1718281994300,0.24292,68347.0,68334.0,0.07215996]
[1718281994511,0.08782,68345.0,68344.0,0.07215996]
[1718281994934,0.23213993,68345.0,68344.0,0.07215996]
[1718281995309,0.23213993,68345.0,68337.0,0.044]
[1718281995310,0.23213993,68345.0,68334.0,0.12115996]
[1718281995533,0.1,68346.0,68334.0,0.12115996]
[1718281995534,0.08782,68343.0,68334.0,0.12115996]
[1718281995719,0.08782,68341.0,68334.0,0.12115996]
[1718281995951,0.08782,68339.0,68334.0,0.07215996]
[1718281996155,0.23213993,68338.0,68334.0,0.07215996]
[1718281996367,0.23213993,68338.0,68327.0,0.12115996]
[1718281996595,0.08782,68336.0,68327.0,0.07215996]
[1718281996797,0.1,68337.0,68321.0,0.044]
[1718281996798,0.08782,68334.0,68321.0,0.044]
[1718281996941,0.08782,68332.0,68328.0,0.07215996]
[1718281997144,0.23213993,68331.0,68328.0,0.07215996]
[1718281998731,0.23213993,68331.0,68327.0,0.049946]
[1718281999148,0.23213993,68331.0,68328.0,0.07215996]
[1718281999350,0.23213993,68331.0,68327.0,0.000946]
[1718281999351,0.08782,68329.0,68327.0,0.000946]
[1718281999546,0.08782,68329.0,68291.0,0.0173071]
[1718281999547,0.2,68321.0,68291.0,0.0173071]
[1718281999831,0.2,68321.0,68236.0,0.19765312]
[1718281999832,0.5,68274.0,68236.0,0.19765312]
[1718282000042,0.18,68229.0,68202.0,0.23875871]
[1718282000276,0.05,68221.0,68197.0,0.18986228]
[1718282000530,0.05,68221.0,68169.0,0.51863482]
[1718282000531,0.05,68168.0,68113.0,0.01739297]
[1718282000731,0.05,68168.0,68157.0,0.1692769]
[1718282000732,1.318,68158.0,68157.0,0.1692769]
[1718282000922,4.17808879,68158.0,68157.0,0.09792132]
[1718282001133,2.41938623,68158.0,68126.0,0.21416052]
[1718282001311,0.29694144,68128.0,68127.0,0.06]
[1718282001544,3.25828273,68128.0,68126.0,0.14367322]
[1718282001748,3.64677135,68127.0,68120.0,0.009427]
[1718282001933,3.08767749,68126.0,68107.0,0.07215996]
[1718282002144,0.212096,68115.0,68106.0,0.3748]
[1718282002366,2.10796031,68125.0,68106.0,0.2748]
[1718282002367,0.14483551,68113.0,68106.0,0.2748]
[1718282002566,0.97265842,68112.0,68088.0,0.3605]
[1718282002787,0.01761896,68120.0,68088.0,0.3605]
[1718282002788,0.04292578,68089.0,68088.0,0.2605]
[1718282003002,0.042927,68089.0,68088.0,0.2605]
[1718282003224,0.042927,68100.0,68088.0,0.2605]
[1718282003425,0.06438867,68090.0,68088.0,0.2605]
[1718282003625,0.06438867,68090.0,68031.0,0.27629845]
[1718282003626,0.07215996,68085.0,68031.0,0.05]
[1718282003869,0.32528748,68089.0,68042.0,0.43295979]
[1718282004014,0.32528748,68089.0,68031.0,0.05]
[1718282004015,0.06417165,68079.0,68056.0,0.2]
[1718282004256,0.12877735,68089.0,68056.0,0.2]
[1718282004257,0.43295979,68087.0,68072.0,0.1551]
[1718282004457,0.10731445,68103.0,68072.0,0.1551]
[1718282004458,0.04278665,68114.0,68086.0,0.14431993]
[1718282004670,0.04278665,68114.0,68087.0,0.219]
[1718282005226,0.07215996,68105.0,68088.0,0.1]
[1718282005373,0.11494661,68131.0,68089.0,0.023]
[1718282005582,0.11494661,68131.0,68071.0,0.10488483]
[1718282005583,0.11494661,68131.0,67999.0,0.22086598]
[1718282005584,0.08,68057.0,67999.0,0.22086598]
[1718282005799,0.08,68057.0,67947.0,0.07348896]
[1718282005800,0.30030196,67987.0,67986.0,0.65362696]
[1718282005958,0.30030196,67987.0,67870.0,0.03147985]
[1718282005959,0.05,67883.0,67870.0,0.03147985]
[1718282006159,2.9795,67878.0,67855.0,0.07331332]
[1718282006363,2.9795,67878.0,67777.0,0.18300267]
[1718282006364,0.06475993,67866.0,67777.0,0.18300267]
[1718282006562,0.06475993,67866.0,67777.0,0.12354212]
[1718282006563,0.18031532,67847.0,67777.0,0.12354212]
[1718282006765,0.07358259,67845.0,67780.0,0.05]
[1718282007049,0.1989499,67846.0,67800.0,0.05]
[1718282007050,0.08,67803.0,67800.0,0.05]
[1718282007252,0.0294,67846.0,67807.0,0.247477]
[1718282007253,0.7,67808.0,67807.0,0.247477]
[1718282007468,0.08,67885.0,67834.0,0.05]
[1718282007688,0.08,67885.0,67798.0,0.2599]
[1718282007689,0.1,67862.0,67812.0,0.042]
[1718282007971,0.6757,67861.0,67803.0,0.1361]
[1718282008190,0.6757,67861.0,67784.0,0.1]
[1718282008191,0.2144,67823.0,67759.0,0.01]
[1718282008404,0.3965,67815.0,67777.0,0.0505311]
[1718282008607,0.3965,67815.0,67748.0,0.2794]
[1718282008608,0.01,67770.0,67748.0,0.2794]
[1718282008853,0.0147,67769.0,67748.0,0.2794]
[1718282009058,0.01387573,67769.0,67748.0,0.20548389]
[1718282009408,0.01387573,67783.0,67758.0,0.01]
[1718282009544,0.01387573,67783.0,67748.0,0.20548389]
[1718282009545,0.43295979,67775.0,67752.0,0.01]
[1718282009757,0.3305,67782.0,67748.0,0.20548389]
[1718282009964,0.01387573,67783.0,67766.0,0.01]
[1718282010125,0.01387573,67797.0,67765.0,0.147567]
[1718282010324,0.01387573,67797.0,67760.0,0.1]
[1718282010325,0.43295979,67796.0,67769.0,0.1]
[1718282010529,0.02,67842.0,67772.0,0.05]
[1718282010729,0.4127,67845.0,67782.0,0.28889908]
[1718282010730,0.43295979,67803.0,67782.0,0.28889908]
[1718282010933,0.07215996,67800.0,67773.0,0.03819515]
[1718282011155,0.02,67798.0,67749.0,0.43295979]
[1718282011365,0.07215996,67776.0,67749.0,0.43195979]
[1718282011759,0.0286,67782.0,67767.0,0.43295979]
[1718282011960,0.0433,67798.0,67753.0,0.147593]
[1718282012161,0.43295979,67799.0,67769.0,0.14431993]
[1718282012379,0.0433,67815.0,67769.0,0.14431993]
[1718282012380,0.0294,67815.0,67800.0,0.1]
[1718282012591,0.1,67858.0,67801.0,0.08787973]
[1718282012760,0.07215996,67851.0,67801.0,0.08787973]
[1718282012976,0.0147,67856.0,67823.0,0.07215996]
[1718282013197,0.44765979,67865.0,67840.0,0.147404]
[1718282013198,0.43295979,67865.0,67840.0,0.147404]
[1718282013410,0.0139,67885.0,67846.0,0.147392]
[1718282013620,0.07215996,67910.0,67824.0,0.05]
[1718282013621,0.661,67894.0,67856.0,0.14737]
[1718282013823,0.661,67894.0,67841.0,0.023]
[1718282013824,0.0146,67883.0,67841.0,0.1]
[1718282014026,0.07215996,67903.0,67841.0,0.1]
[1718282014027,0.3305,67904.0,67869.0,0.14734]
[1718282014254,0.2976784,67928.0,67880.0,0.07215996]
[1718282014255,0.0147,67918.0,67880.0,0.07215996]
[1718282014454,0.0038784,67928.0,67870.0,0.123]
[1718282014455,0.50511975,67915.0,67874.0,0.6612]
[1718282014687,0.6648784,67928.0,67885.0,0.07215996]
[1718282014931,0.0038784,67928.0,67894.0,0.07215996]
[1718282015154,0.0038784,67928.0,67906.0,0.05]
[1718282015360,0.0038784,67928.0,67911.0,0.6122]
[1718282015551,0.0038784,67928.0,67912.0,0.391]
[1718282015765,0.07215996,67961.0,67926.0,0.147218]
[1718282015991,0.215,67998.0,67927.0,0.023]
[1718282016216,0.07215996,67961.0,67927.0,0.023]
[1718282016449,0.662,67970.0,67933.0,0.147203]
[1718282016720,0.0346,67977.0,67934.0,0.349]
[1718282016721,0.0146,67977.0,67934.0,0.349]
[1718282016908,0.07215996,67963.0,67934.0,0.225]
[1718282017132,0.0146,67981.0,67942.0,0.14431993]
[1718282017342,0.0146,67981.0,67939.0,0.43295979]
[1718282017343,0.0146,67981.0,67952.0,5.49e-06]
[1718282017783,0.058863,67982.0,67954.0,0.146156]
[1718282017940,0.07215996,68003.0,67967.0,0.14431993]
[1718282018124,0.07215996,68003.0,67956.0,0.43295979]
[1718282018125,0.07215996,68003.0,67975.0,0.14431993]
[1718282018326,0.07215996,67996.0,67975.0,0.14431993]
[1718282018556,0.07215996,67996.0,67968.0,0.1]
[1718282018753,0.07215996,67996.0,67969.0,0.14431993]
[1718282018754,0.07215996,67989.0,67969.0,0.14431993]
[1718282018960,0.07215996,67996.0,67975.0,0.147111]
[1718282019166,0.07215996,68003.0,67976.0,0.15098612]
[1718282019374,0.07215996,68003.0,67976.0,0.12798612]
[1718282019602,0.07215996,68003.0,67969.0,0.058856]
[1718282019603,0.07215996,67996.0,67969.0,0.058856]
[1718282019794,0.07215996,67996.0,67955.0,0.3572]
[1718282019795,0.14431993,67995.0,67956.0,0.43295979]
[1718282019993,0.14431993,67995.0,67957.0,0.212]
[1718282020196,0.07215996,68003.0,67957.0,0.212]
[1718282020197,0.07215996,68003.0,67967.0,0.14431993]
[1718282020407,0.07215996,68015.0,67971.0,0.14431993]
[1718282020620,0.1011,68024.0,67971.0,0.14431993]
[1718282020621,0.0011,68024.0,67981.0,0.27215996]
[1718282020828,0.0011,68024.0,67996.0,0.05]
[1718282021033,0.0011,68024.0,67990.0,0.049]
[1718282021034,0.0011,68024.0,68003.0,0.147051]
[1718282021367,0.0216012,68036.0,68004.0,0.26731993]
[1718282021526,0.0216012,68036.0,68013.0,0.147028]
[1718282021729,0.14431993,68035.0,68004.0,0.123]
[1718282022062,0.14431993,68035.0,67973.0,1.18879896]
[1718282022063,0.07215996,68021.0,68010.0,0.43295979]
[1718282022279,0.07215996,68021.0,67992.0,0.43295979]
[1718282022480,0.07215996,68028.0,68011.0,0.147033]
[1718282022699,0.07215996,68028.0,67993.0,0.1]
[1718282022879,0.0216012,68036.0,68024.0,0.147005]
[1718282023189,0.0216012,68036.0,68035.0,0.146983]
[1718282023401,0.07215996,68062.0,68035.0,0.1]
[1718282023610,0.07215996,68062.0,68026.0,0.5271]
[1718282023611,0.07215996,68054.0,68036.0,0.1]
[1718282023816,0.07215996,68047.0,68026.0,0.5271]
[1718282024022,0.07215996,68061.0,68032.0,0.43295979]
[1718282024233,0.07215996,68068.0,68026.0,0.5271]
[1718282024234,0.07215996,68068.0,68033.0,0.1]
[1718282024442,0.07215996,68068.0,68028.0,0.049]
[1718282024663,0.07215996,68068.0,68034.0,0.14431993]
[1718282024887,0.07215996,68068.0,68036.0,0.14431993]
[1718282025084,0.09215996,68087.0,68055.0,0.146939]
[1718282025085,0.07215996,68087.0,68055.0,0.146939]
[1718282025231,0.07215996,68087.0,68048.0,0.1]
[1718282025456,0.50511975,68080.0,68049.0,0.2652]
[1718282025651,0.07215996,68066.0,68051.0,0.0147]
[1718282025829,0.07215996,68059.0,68049.0,0.2422]
[1718282026009,0.07215996,68073.0,68055.0,0.43295979]
[1718282026217,0.07215996,68073.0,68049.0,0.1981]
[1718282026218,0.14431993,68072.0,68049.0,0.1981]
[1718282026432,0.07215996,68058.0,68049.0,0.1981]
[1718282027053,0.07215996,68066.0,68049.0,0.1981]
[1718282027260,0.07215996,68066.0,68036.0,0.1]
[1718282027261,0.07215996,68052.0,68036.0,0.1]
[1718282027523,0.07215996,68052.0,68026.0,0.3164]
[1718282027524,0.07215996,68045.0,68038.0,0.43295979]
[1718282027673,0.07215996,68037.0,68015.0,0.147024]
[1718282027897,0.07215996,68023.0,68014.0,0.43295979]
[1718282028123,0.07215996,68023.0,68003.0,0.3064]
[1718282028415,0.07215996,68023.0,67992.0,0.48195979]
[1718282028416,0.07215996,68004.0,67983.0,0.049]
[1718282028508,0.07215996,68023.0,68004.0,0.43295979]
[1718282028858,0.07215996,68023.0,67981.0,0.43295979]
[1718282028859,0.07215996,68008.0,67981.0,0.43295979]
[1718282029067,0.07215996,67984.0,67981.0,0.43295979]
[1718282029272,0.07187358,67984.0,67974.0,0.2589]
[1718282029480,0.07215996,67992.0,67974.0,0.2589]
[1718282029481,0.07215996,67982.0,67975.0,0.43295979]
[1718282029689,0.07215996,67992.0,67974.0,0.2589]
[1718282029690,0.07215996,67983.0,67974.0,0.2589]
[1718282029903,0.1,67991.0,67957.0,0.43295979]
[1718282030119,0.30507681,67990.0,67947.0,0.049]
[1718282030322,0.07215996,67964.0,67940.0,0.43295979]
[1718282030533,0.07215996,67978.0,67959.0,0.43295979]
[1718282030740,0.07215996,67964.0,67943.0,0.0147]
[1718282030953,0.07215996,67959.0,67944.0,0.43295979]
[1718282031167,0.07215996,67962.0,67960.0,0.147144]
[1718282031407,0.07215996,67962.0,67931.0,0.0101]
[1718282031408,0.07215996,67955.0,67931.0,0.0101]
[1718282031626,0.30512273,67954.0,67941.0,0.43295979]
[1718282031842,0.45767972,67970.0,67942.0,0.43295979]
[1718282032040,0.07215996,67971.0,67931.0,0.0101]
[1718282032041,0.07215996,67956.0,67931.0,0.0101]
[1718282032253,0.07215996,67956.0,67932.0,0.294411]
[1718282032455,0.07215996,67971.0,67931.0,0.0101]
[1718282032665,0.07215996,67964.0,67932.0,0.0147]
[1718282032886,0.07215996,67957.0,67934.0,0.294403]
[1718282033128,0.61011588,67994.0,67952.0,0.294324]
[1718282033334,0.3181,68007.0,67952.0,0.294324]
[1718282033335,0.7626128,67984.0,67952.0,0.860524]
[1718282033570,0.08981591,67999.0,67954.0,0.294314]
[1718282033571,0.07215996,67967.0,67954.0,0.294314]
[1718282033781,0.07215996,67967.0,67955.0,0.023]
[1718282033991,0.07215996,67967.0,67953.0,0.023]
[1718282034219,0.07215996,67967.0,67953.0,0.123]
[1718282034688,0.07215996,67967.0,67954.0,0.14431993]
[1718282034891,0.07215996,67967.0,67953.0,0.24431993]
[1718282035110,0.30501871,67966.0,67964.0,0.147134]
[1718282035322,0.07215996,67975.0,67953.0,0.1]
[1718282035323,0.30501871,67965.0,67953.0,0.1]
[1718282035518,0.07215996,67975.0,67953.0,0.1]
[1718282035519,0.30501871,67964.0,67953.0,0.1]
[1718282035751,0.30501871,67963.0,67957.0,0.14431993]
[1718282035955,0.1,67990.0,67957.0,0.14431993]
[1718282035956,0.07215996,67978.0,67969.0,0.147124]
[1718282036131,0.07215996,67978.0,67958.0,0.1]
[1718282036132,0.07215996,67971.0,67953.0,0.1]
[1718282036341,0.07215996,67964.0,67953.0,0.1]
[1718282036540,0.14431993,67977.0,67954.0,0.60027972]
[1718282036748,0.07215996,67971.0,67954.0,0.16731993]
[1718282036946,0.07215996,67971.0,67954.0,0.023]